{"text_format":"1","workbook":"xlsx","n_sheets":2,"sheets":["Planilha1","CRONOGRAMA"],"not_rendered":{"charts":0,"images":0,"macros":0,"external_links":0,"defined_names":0,"comments":0,"pivot_tables":0},"unopened":[],"bounds":{"document_bytes":16777216,"sheet_cells":100000,"rows_first":2000,"rows_last":500,"rows_between":2000,"halvings":0,"cell_chars":16384,"cell_head_chars":4096},"cells_cut":0,"cells_raw":0,"read":"whole","date_system":"1900"}

{"sheet":"Planilha1","index":0,"n_rows":30,"n_cols":11,"rows_kept":30,"cut":false,"hidden":false,"merged":[[4,6,5,10],[6,6,7,10],[0,0,3,5],[20,0,20,4],[22,0,23,0],[22,4,23,4],[4,1,4,5],[5,1,5,5],[6,1,6,5],[7,1,7,5],[29,1,29,3],[18,7,18,10],[27,1,27,3],[28,1,28,3],[8,0,8,5],[8,6,8,7],[8,8,8,10],[10,2,17,2],[10,3,17,3],[10,4,17,4],[10,5,17,5]]}
["PREFEITURA MUNICIPAL DE ARIPUANÃ - MT\nDEPARTAMENTO DE ENGENHARIA CIVIL\nPraça São Francisco de Assis, 128, Caixa Postal 91 – CEP 78.325-000, \nAripuanã – MT, Fone : (66) 3565 – 3927\nengenharia@aripuana.mt.gov.br"]
[]
[]
[]
["Obra:","CONTRATAÇÃO DE EMPRESA ESPECIALIZADA PARA ELABORAÇÃO DE PROJETOS EXECUTIVO DE RESTAURAÇÃO DA PISTA DE POUSO E DECOLAGEM E SINALIZAÇÃO HORIZONTAL DO AERÓDROMO MUNICIPAL DE  ARIPUANÃ-MT",null,null,null,null,"PERÍODO MEDIÇÃO:\n12/12/2023 A 18/12/2023"]
["Local:",{"$f":"B8","v":"PREFEITURA MUNICIPAL DE ARIPUANÃ/MT"}]
["Valor da mediana",{"$f":"C11","v":118000},null,null,null,null,"CONTRATO N° 145/2023"]
["Prop.:","PREFEITURA MUNICIPAL DE ARIPUANÃ/MT"]
["PLANILHA ORÇAMENTARIA",null,null,null,null,null,"MEDIÇÃO ÚNICA",null,"ACUMULADO"]
["ITEM","DESCRIÇÃO","PREÇO UNIT","UNID","QUANT","VALOR TOTAL","QNT MEDIDA","VALOR","QNT MEDIDA","VALOR","%"]
["1.0",{"$f":"B5","v":"CONTRATAÇÃO DE EMPRESA ESPECIALIZADA PARA ELABORAÇÃO DE PROJETOS EXECUTIVO DE RESTAURAÇÃO DA PISTA DE POUSO E DECOLAGEM E SINALIZAÇÃO HORIZONTAL DO AERÓDROMO MUNICIPAL DE  ARIPUANÃ-MT"},{"$f":"E23","v":118000},"UNID",1,{"$f":"C11","v":118000},1,{"$f":"G11*C11","v":118000},{"$f":"G11","v":1},{"$f":"H11","v":118000},{"$f":"J11/F11","v":1}]
["1.0.1","PROJETO GEOMÉTRICO"]
["1.0.2","Projeto de restauração da pista de pouso e decolagem, taxiway e pátio\nde estacionamento de aeronaves"]
["1.0.3","Projeto de Sinalização Horizontal"]
["1.0.4","Memorial Descritivo e especificações técnicas;"]
["1.0.5","Relatório de cálculo do PCN da PPD"]
["1.0.6","Orçamento com e sem desoneração"]
["1.0.7","Gestão técnica juto a SINFRA, até obtenção de Parecer Técnico de\nAPROVAÇÃO"]
[null,null,null,null,null,null,null,{"$f":"TODAY()","v":"2024-06-05"}]
[]
["COTAÇÃO"]
["SERVIÇO","EMPRESA 01","EMPRESA 02","EMPRESA 03","ESCOLHA DA ADM. - MENOR PREÇO "]
[{"$f":"B5","v":"CONTRATAÇÃO DE EMPRESA ESPECIALIZADA PARA ELABORAÇÃO DE PROJETOS EXECUTIVO DE RESTAURAÇÃO DA PISTA DE POUSO E DECOLAGEM E SINALIZAÇÃO HORIZONTAL DO AERÓDROMO MUNICIPAL DE  ARIPUANÃ-MT"},"RN DIAS CONSULTORIA E PROJETOS\nCNPJ40.600.695/0001-67","FLA ENGENHARIA E CONSULTORIA EIRELI\nCNPJ: 19.522.505/0001-44","EXITO EMPREENDIMENTOS LTDA\nCNPJ: 50369117/0001-15",{"$f":"B24","v":118000}]
[null,118000,125000,150000]
[]
[]
[]
[null,"CARLA ALVES SANTOS"]
[null,"Engenheira Civil"]
[null,"Crea/MT 049827"]

{"sheet":"CRONOGRAMA","index":1,"n_rows":16,"n_cols":8,"rows_kept":16,"cut":false,"hidden":false,"merged":[[9,2,10,2],[9,3,10,3],[4,0,5,0],[0,0,1,7],[13,0,13,1],[14,0,14,1],[15,0,15,1],[7,0,8,0],[7,1,8,1],[9,0,10,0],[9,1,10,1],[7,5,8,5],[7,6,8,6],[7,7,8,7],[2,0,2,7],[3,1,3,7],[4,1,5,7],[6,1,6,7],[7,2,8,2],[7,3,8,3],[7,4,8,4]]}
["PREFEITURA MUNICIPAL DE ARIPUANÃ - MT\nDEPARTAMENTO DE ENGENHARIA\nPraça São Francisco de Assis, 128, Caixa Postal 91 – CEP 78.325-000, \nAripuanã – MT, Fone : (66) 3565 - 3900 \nwww.aripuana.mt.gov.br"]
[]
["CRONOGRAMA FÍSICO FINANCEIRO"]
["OBRA",{"$f":"Planilha1!B5","v":"CONTRATAÇÃO DE EMPRESA ESPECIALIZADA PARA ELABORAÇÃO DE PROJETOS EXECUTIVO DE RESTAURAÇÃO DA PISTA DE POUSO E DECOLAGEM E SINALIZAÇÃO HORIZONTAL DO AERÓDROMO MUNICIPAL DE  ARIPUANÃ-MT"}]
["LOCAL",{"$f":"Planilha1!B6","v":"PREFEITURA MUNICIPAL DE ARIPUANÃ/MT"}]
[]
["VALOR",{"$f":"E11","v":29500}]
["ITEM","DESCRIÇÃO","PERCENTUAL","VALOR","30 dias","60 dias","90 dias","120 dias"]
[]
["1.0",{"$f":"Planilha1!B11","v":"CONTRATAÇÃO DE EMPRESA ESPECIALIZADA PARA ELABORAÇÃO DE PROJETOS EXECUTIVO DE RESTAURAÇÃO DA PISTA DE POUSO E DECOLAGEM E SINALIZAÇÃO HORIZONTAL DO AERÓDROMO MUNICIPAL DE  ARIPUANÃ-MT"},{"$f":"D10/D$14","v":1},{"$f":"Planilha1!F11","v":118000},0.25,0.25,0.25,0.25]
[null,null,null,null,{"$f":"E10*D10","v":29500},{"$f":"F10*$D$10","v":29500},{"$f":"G10*$D$10","v":29500},{"$f":"H10*$D$10","v":29500}]
[null,null,null,"ACUMULADO",{"$f":"E10","v":0.25},{"$f":"E12+F10","v":0.5},{"$f":"F12+G10","v":0.75},{"$f":"G12+H10","v":1}]
[null,null,null,null,{"$f":"E11","v":29500},{"$f":"+F11+E13","v":59000},{"$f":"F13+G11","v":88500},{"$f":"G13+H11","v":118000}]
["TOTAL ",null,{"$f":"SUM(C10:C11)","v":1},{"$f":"SUM(D10:D11)","v":118000}]
[]
[{"$f":"TODAY()","v":"2024-06-05"}]